fUST/lending_fUST_20240725
["ID","MTS","AMOUNT","RATE_DAILY","PERIOD"]
[333119275,1721877040283,-500.0,0.00013698,2]
[333119280,1721877040300,-500.0,0.00013698,2]
[333119284,1721877040317,-500.0,0.00013698,2]
[333119287,1721877040332,-500.0,0.00013698,2]
[333119292,1721877040346,-500.0,0.00013698,2]
[333119296,1721877040360,-500.0,0.00013698,2]
[333119301,1721877040373,-644.29826713,0.00013698,2]
[333119304,1721877040384,-1124.51,0.00013698,2]
[333119307,1721877040396,-500.0,0.00013698,2]
[333119311,1721877040408,-500.0,0.00013698,2]
[333119315,1721877040421,-567.77,0.00013698,2]
[333119318,1721877040434,-597.89517469,0.00013698,2]
[333119322,1721877040448,-500.0,0.00013698,2]
[333119326,1721877040460,-206.48940271,0.00013698,2]
[333119330,1721877040474,-1594.62,0.00013698,2]
[333119333,1721877040487,-1272.84,0.00013698,2]
[333119336,1721877040501,-500.0,0.00013698,2]
[333119339,1721877040516,-500.0,0.00013698,2]
[333119341,1721877040530,-500.0,0.00013698,2]
[333119344,1721877040544,-500.74768592,0.00013698,2]
[333119346,1721877040556,-967.4,0.00013698,2]
[333119348,1721877040568,-688.87,0.00013698,2]
[333119351,1721877040582,-528.94,0.00013698,2]
[333119353,1721877040599,-500.0,0.00013698,2]
[333119356,1721877040615,-508.73304228,0.00013698,2]
[333119358,1721877040629,-500.0,0.00013698,2]
[333119361,1721877040642,-180.43089525,0.00013698,2]
[333119363,1721877040655,-549.70153366,0.00013698,2]
[333119365,1721877040668,-500.0,0.00013698,2]
[333119367,1721877040679,-500.0,0.00013698,2]
[333119370,1721877040690,-500.0,0.00013698,2]
[333119372,1721877040703,-500.0,0.00013698,2]
[333119374,1721877040717,-500.0,0.00013698,2]
[333119377,1721877040730,-500.0,0.00013698,2]
[333119379,1721877040744,-500.0,0.00013698,2]
[333119381,1721877040756,-1483.21,0.00013698,2]
[333119384,1721877040769,-514.07271305,0.00013698,2]
[333119386,1721877040786,-500.0,0.00013698,2]
[333119389,1721877040798,-536.97,0.00013698,2]
[333119391,1721877040812,-483.52912411,0.00013698,2]
[333119393,1721877040824,-504.57876301,0.00013698,2]
[333119395,1721877040835,-500.0,0.00013698,2]
[333119397,1721877040846,-500.0,0.00013698,2]
[333119399,1721877040855,-1671.45,0.00013698,2]
[333119401,1721877040865,-502.60978537,0.00013698,2]
[333119403,1721877040876,-500.0,0.00013698,2]
[333119405,1721877040886,-500.0,0.00013698,2]
[333119407,1721877040897,-502.17267503,0.00013698,2]
[333119410,1721877040909,-500.0,0.00013698,2]
[333119412,1721877040920,-500.0,0.00013698,2]
[333119414,1721877040932,-500.0,0.00013698,2]
[333119415,1721877040944,-1013.12,0.00013698,2]
[333119416,1721877040957,-500.0,0.00013698,2]
[333119417,1721877040968,-151.0,0.00013698,2]
[333119418,1721877040979,-502.78747536,0.00013698,2]
[333119420,1721877040992,-503.41575297,0.00013698,2]
[333119422,1721877041002,-500.0,0.00013698,2]
[333119424,1721877041014,-506.58152275,0.00013698,2]
[333119429,1721877041030,-500.0,0.00013698,2]
[333119433,1721877041044,-500.0,0.00013698,2]
[333119436,1721877041057,-514.28646821,0.00013698,2]
[333119439,1721877041070,-502.04426339,0.00013698,2]
[333119443,1721877041082,-500.4101871,0.00013698,2]
[333119445,1721877041095,-500.0,0.00013698,2]
[333119447,1721877041107,-500.0,0.00013698,2]
[333119450,1721877041118,-640.32333384,0.00013698,2]
[333119452,1721877041130,-500.0,0.00013698,2]
[333119454,1721877041142,-501.62336068,0.00013698,2]
[333119457,1721877041156,-500.0,0.00013698,2]
[333119459,1721877041169,-500.0,0.00013698,2]
[333119461,1721877041183,-520.11789734,0.00013698,2]
[333119464,1721877041198,-505.75320243,0.00013698,2]
[333119466,1721877041209,-348.61308731,0.00013698,2]
[333119469,1721877041222,-636.88,0.00013698,2]
[333119471,1721877041240,-500.0,0.00013698,2]
[333119474,1721877041254,-500.0,0.00013698,2]
[333119476,1721877041268,-1629.53,0.00013698,2]
[333119479,1721877041283,-500.0,0.00013698,2]
[333119481,1721877041296,-525.78238354,0.00013698,2]
[333119484,1721877041308,-500.0,0.00013698,2]
[333119486,1721877041320,-500.0,0.00013698,2]
[333119488,1721877041331,-500.0,0.00013698,2]
[333119490,1721877041342,-502.19466042,0.00013698,2]
[333119492,1721877041354,-504.65186402,0.00013698,2]
[333119494,1721877041366,-1580.33,0.00013698,2]
[333119496,1721877041378,-502.72465777,0.00013698,2]
[333119498,1721877041389,-332.21466352,0.00013698,2]
[333119500,1721877041403,-676.75,0.00013698,2]
[333119502,1721877041415,-501.96862876,0.00013698,2]
[333119505,1721877041427,-888.48,0.00013698,2]
[333119507,1721877041441,-500.0,0.00013698,2]
[333119509,1721877041452,-500.0,0.00013698,2]
[333119511,1721877041464,-500.0,0.00013698,2]
[333119514,1721877041476,-500.0,0.00013698,2]
[333119516,1721877041486,-568.57275059,0.00013698,2]
[333119518,1721877041498,-500.0,0.00013698,2]
[333119520,1721877041509,-500.0,0.00013698,2]
[333119522,1721877041521,-500.64097119,0.00013698,2]
[333119524,1721877041537,-500.0,0.00013698,2]
[333119526,1721877041549,-501.24621465,0.00013698,2]
[333119529,1721877041562,-504.23524958,0.00013698,2]
[333119531,1721877041576,-791.89,0.00013698,2]
[333119533,1721877041588,-500.0,0.00013698,2]
[333119536,1721877041601,-568.12012604,0.00013698,2]
[333119538,1721877041613,-500.0,0.00013698,2]
[333119540,1721877041624,-500.0,0.00013698,2]
[333119542,1721877041636,-723.48,0.00013698,2]
[333119544,1721877041649,-500.0,0.00013698,2]
[333119546,1721877041660,-500.0,0.00013698,2]
[333119549,1721877041672,-500.0,0.00013698,2]
[333119551,1721877041684,-505.14755196,0.00013698,2]
[333119553,1721877041697,-500.0,0.00013698,2]
[333119555,1721877041709,-1656.52,0.00013698,2]
[333119558,1721877041721,-500.0,0.00013698,2]
[333119560,1721877041733,-500.0,0.00013698,2]
[333119562,1721877041745,-500.0,0.00013698,2]
[333119564,1721877041756,-500.0,0.00013698,2]
[333119566,1721877041767,-556.49,0.00013698,2]
[333119568,1721877041780,-500.0,0.00013698,2]
[333119570,1721877041790,-500.0,0.00013698,2]
[333119572,1721877041801,-500.0,0.00013698,2]
[333119575,1721877041812,-500.0,0.00013698,2]
[333119577,1721877041822,-184.38103629,0.00013698,2]
[333119579,1721877041834,-500.0,0.00013698,2]
[333119581,1721877041844,-510.11642446,0.00013698,2]
[333119583,1721877041855,-500.0,0.00013698,2]
[333119585,1721877041866,-1112.7,0.00013698,2]
[333119588,1721877041877,-500.0,0.00013698,2]
[333119590,1721877041889,-627.9,0.00013698,2]
[333119592,1721877041900,-500.0,0.00013698,2]
[333119594,1721877041912,-500.0,0.00013698,2]
[333119597,1721877041925,-503.21592375,0.00013698,2]
[333119599,1721877041936,-779.69,0.00013698,2]
[333119601,1721877041947,-1362.57,0.00013698,2]
[333119603,1721877041960,-504.16219307,0.00013698,2]
[333119606,1721877041974,-500.0,0.00013698,2]
[333119608,1721877041987,-500.0,0.00013698,2]
[333119611,1721877041999,-500.0,0.00013698,2]
[333119613,1721877042012,-500.0,0.00013698,2]
[333119615,1721877042024,-500.0,0.00013698,2]
[333119617,1721877042037,-500.0,0.00013698,2]
[333119620,1721877042049,-500.0,0.00013698,2]
[333119622,1721877042061,-500.0,0.00013698,2]
[333119624,1721877042072,-500.0,0.00013698,2]
[333119626,1721877042083,-242.54899656,0.00013698,2]
[333119629,1721877042094,-501.70296223,0.00013698,2]
[333119631,1721877042108,-500.0,0.00013698,2]
[333119633,1721877042121,-500.0,0.00013698,2]
[333119636,1721877042132,-445.07089119,0.00013698,2]
[333119638,1721877042143,-500.0,0.00013698,2]
[333119640,1721877042155,-1231.64,0.00013698,2]
[333119642,1721877042167,-504.15385489,0.00013698,2]
[333119645,1721877042179,-500.0,0.00013698,2]
[333119647,1721877042190,-500.0,0.00013698,2]
[333119649,1721877042201,-500.0,0.00013698,2]
[333119651,1721877042212,-1819.36,0.00013698,2]
[333119653,1721877042222,-500.73041792,0.00013698,2]
[333119655,1721877042234,-505.28780078,0.00013698,2]
[333119658,1721877042245,-500.80552169,0.00013698,2]
[333119660,1721877042256,-500.0,0.00013698,2]
[333119662,1721877042268,-502.22399325,0.00013698,2]
[333119664,1721877042282,-693.86,0.00013698,2]
[333119666,1721877042292,-500.0,0.00013698,2]
[333119668,1721877042304,-500.0,0.00013698,2]
[333119670,1721877042317,-500.0,0.00013698,2]
[333119673,1721877042328,-579.63,0.00013698,2]
[333119675,1721877042341,-515.76032783,0.00013698,2]
[333119677,1721877042351,-500.0,0.00013698,2]
[333119679,1721877042363,-501.469138,0.00013698,2]
[333119681,1721877042372,-500.0,0.00013698,2]
[333119683,1721877042382,-469.06380217,0.00013698,2]
[333119685,1721877042392,-151.0,0.00013698,2]
[333119687,1721877042402,-500.0,0.00013698,2]
[333119710,1721877042624,-501.60133166,0.00013698,2]
[333119714,1721877042647,-505.89250674,0.00013698,2]
[333119716,1721877042662,-500.0,0.00013698,2]
[333119719,1721877042674,-503.83353162,0.00013698,2]
[333119721,1721877042686,-514.38798571,0.00013698,2]
[333119723,1721877042697,-504.27712946,0.00013698,2]
[333119725,1721877042706,-501.93587151,0.00013698,2]
[333119727,1721877042716,-500.0,0.00013698,2]
[333119729,1721877042727,-1836.92,0.00013698,2]
[333119731,1721877042736,-503.16004595,0.00013698,2]
[333119733,1721877042746,-500.0,0.00013698,2]
[333119735,1721877042758,-500.0,0.00013698,2]
[333119737,1721877042768,-1011.0,0.00013698,2]
[333119739,1721877042779,-500.0,0.00013698,2]
[333119741,1721877042789,-500.0,0.00013698,2]
[333119743,1721877042799,-500.0,0.00013698,2]
[333119745,1721877042808,-500.0,0.00013698,2]
[333119747,1721877042820,-501.41004709,0.00013698,2]
[333119749,1721877042829,-500.0,0.00013698,2]
[333119751,1721877042838,-500.0,0.00013698,2]
[333119753,1721877042847,-500.0,0.00013698,2]
[333119755,1721877042857,-500.0,0.00013698,2]
[333119758,1721877042869,-500.0,0.00013698,2]
[333119760,1721877042880,-515.53496397,0.00013698,2]
[333119762,1721877042891,-500.0,0.00013698,2]
[333119764,1721877042902,-1723.97,0.00013698,2]
[333119766,1721877042912,-506.3353934,0.00013698,2]
[333119768,1721877042923,-500.0,0.00013698,2]
[333119770,1721877042933,-500.0,0.00013698,2]
[333119772,1721877042943,-1064.91,0.00013698,2]
[333119774,1721877042953,-500.0,0.00013698,2]
[333119776,1721877042963,-505.23230506,0.00013698,2]
[333119778,1721877042973,-1813.76,0.00013698,2]
[333119780,1721877042984,-518.50907211,0.00013698,2]
[333119782,1721877042995,-500.0,0.00013698,2]
[333119784,1721877043004,-501.29786532,0.00013698,2]
[333119786,1721877043014,-502.55898061,0.00013698,2]
[333119788,1721877043024,-502.75742522,0.00013698,2]
[333119791,1721877043039,-824.53,0.00013698,2]
[333119793,1721877043049,-504.31393444,0.00013698,2]
[333119795,1721877043059,-192.31347472,0.00013698,2]
[333119797,1721877043071,-673.75,0.00013698,2]
[333119799,1721877043082,-503.57327048,0.00013698,2]
[333119801,1721877043091,-503.42279758,0.00013698,2]
[333119803,1721877043101,-500.0,0.00013698,2]
[333119805,1721877043111,-500.0,0.00013698,2]
[333119807,1721877043121,-152.658298,0.00013698,2]
[333119809,1721877043131,-500.0,0.00013698,2]
[333119811,1721877043142,-646.78,0.00013698,2]
[333119813,1721877043152,-500.0,0.00013698,2]
[333119815,1721877043162,-500.0,0.00013698,2]
[333119817,1721877043172,-13654.62,0.00013698,2]
[333119820,1721877043183,-13654.62,0.00013698,2]
[333119822,1721877043194,-13654.62,0.00013698,2]
[333119824,1721877043203,-13654.62,0.00013698,2]
[333119826,1721877043214,-13654.62,0.00013698,2]
[333119828,1721877043224,-13654.62,0.00013698,2]
[333119830,1721877043234,-13654.62,0.00013698,2]
[333119832,1721877043245,-13654.62,0.00013698,2]
[333119834,1721877043255,-13654.62,0.00013698,2]
[333119838,1721877043265,-13654.62,0.00013698,2]
[333119842,1721877043275,-13654.62,0.00013698,2]
[333119846,1721877043294,-13654.62,0.00013698,2]
[333119850,1721877043304,-13654.62,0.00013698,2]
[333119854,1721877043316,-500.70760007,0.00013698,2]
[333119858,1721877043325,-848.87,0.00013698,2]
[333119862,1721877043336,-13654.62,0.00013698,2]
[333119866,1721877043346,-640.73,0.00013698,2]
[333119869,1721877043356,-500.68249841,0.00013698,2]
[333119871,1721877043366,-3510.31,0.00013698,2]
[333119874,1721877043376,-504.43162346,0.00013698,2]
[333119877,1721877043386,-512.05385497,0.00013698,2]
[333119880,1721877043396,-500.0,0.00013698,2]
[333119883,1721877043406,-500.0,0.00013698,2]
[333119886,1721877043416,-501.38770988,0.00013698,2]
[333119889,1721877043425,-151.0,0.00013698,2]
[333119892,1721877043434,-500.0,0.00013698,2]
[333119895,1721877043443,-500.0,0.00013698,2]
[333119898,1721877043453,-500.0,0.00013698,2]
[333119900,1721877043463,-500.0,0.00013698,2]
[333119902,1721877043474,-500.0,0.00013698,2]
[333119904,1721877043486,-501.19607562,0.00013698,2]
[333119906,1721877043496,-2191.38,0.00013698,2]
[333119908,1721877043505,-503.25948562,0.00013698,2]
[333119910,1721877043518,-500.0,0.00013698,2]
[333119913,1721877043535,-500.0,0.00013698,2]
[333119915,1721877043544,-502.25901746,0.00013698,2]
[333119917,1721877043554,-1456.2,0.00013698,2]
[333119920,1721877043563,-500.0,0.00013698,2]
[333119922,1721877043572,-500.0,0.00013698,2]
[333119924,1721877043582,-500.0,0.00013698,2]
[333119926,1721877043592,-820.41,0.00013698,2]
[333119928,1721877043607,-500.0,0.00013698,2]
[333119930,1721877043617,-502.15679184,0.00013698,2]
[333119932,1721877043629,-500.0,0.00013698,2]
[333119934,1721877043639,-502.24919647,0.00013698,2]
[333119936,1721877043650,-500.0,0.00013698,2]
[333119938,1721877043661,-500.0,0.00013698,2]
[333119940,1721877043672,-500.0,0.00013698,2]
[333119942,1721877043682,-2131.27,0.00013698,2]
[333119944,1721877043693,-500.0,0.00013698,2]
[333119946,1721877043703,-3804.14,0.00013698,2]
[333119948,1721877043714,-500.0,0.00013698,2]
[333119950,1721877043725,-500.0,0.00013698,2]
[333119952,1721877043735,-500.59529091,0.00013698,2]
[333119954,1721877043747,-500.0,0.00013698,2]
[333119957,1721877043758,-501.84068966,0.00013698,2]
[333119959,1721877043768,-503.08553153,0.00013698,2]
[333119961,1721877043778,-3711.53,0.00013698,2]
[333119963,1721877043790,-229.774243,0.00013698,2]
[333119965,1721877043800,-500.0,0.00013698,2]
[333119967,1721877043810,-542.71171115,0.00013698,2]
[333119969,1721877043821,-229.774243,0.00013698,2]
[333119971,1721877043832,-1724.2,0.00013698,2]
[333119973,1721877043845,-4302.02,0.00013698,2]
[333119975,1721877043857,-151.0,0.00013698,2]
[333119977,1721877043867,-500.0,0.00013698,2]
[333119979,1721877043877,-625.6,0.00013698,2]
[333119981,1721877043887,-151.0,0.00013698,2]
[333119983,1721877043896,-1503.81,0.00013698,2]
[333119985,1721877043906,-1713.93,0.00013698,2]
[333119987,1721877043916,-159.80445697,0.00013698,2]
[333119989,1721877043926,-500.0,0.00013698,2]
[333119991,1721877043935,-501.67212361,0.00013698,2]
[333119993,1721877043945,-500.0,0.00013698,2]
[333119995,1721877043955,-500.0,0.00013698,2]
[333119997,1721877043964,-500.0,0.00013698,2]
[333119999,1721877043973,-794.36,0.00013698,2]
[333120001,1721877043983,-500.0,0.00013698,2]
[333120003,1721877043992,-500.0,0.00013698,2]
[333120005,1721877044004,-500.0,0.00013698,2]
[333120007,1721877044014,-2305.86,0.00013698,2]
[333120009,1721877044024,-151.0,0.00013698,2]
[333120011,1721877044037,-870.6,0.00013698,2]
[333120013,1721877044047,-7197.46,0.00013698,2]
[333120015,1721877044056,-500.0,0.00013698,2]
[333120017,1721877044065,-151.0,0.00013698,2]
[333120019,1721877044075,-500.0,0.00013698,2]
[333120021,1721877044084,-500.0,0.00013698,2]
[333120022,1721877044093,-500.0,0.00013698,2]
[333120024,1721877044103,-419.63565238,0.00013698,2]
[333120026,1721877044112,-500.0,0.00013698,2]
[333120028,1721877044122,-12113.83,0.00013698,2]
[333120031,1721877044133,-2400.77,0.00013698,2]
[333120033,1721877044142,-580.99309092,0.00013698,2]
[333120035,1721877044152,-1302.05,0.00013698,2]
[333120036,1721877044162,-503.79821628,0.00013698,2]
[333120039,1721877044172,-500.0,0.00013698,2]
[333120040,1721877044182,-500.0,0.00013698,2]
[333120042,1721877044191,-9447.49,0.00013698,2]
[333120046,1721877044201,-500.0,0.00013698,2]
[333120048,1721877044211,-5409.08674934,0.00013698,2]
[333120105,1721877044686,-298.00325066,0.00013698,2]
[333120107,1721877044696,-203.97883705,0.00013698,2]
[333120123,1721877044855,-296.02116295,0.00013698,2]
[333120125,1721877044866,-500.0,0.00013698,2]
[333120127,1721877044877,-500.0,0.00013698,2]
[333120130,1721877044888,-500.0,0.00013698,2]
[333120132,1721877044900,-807.57,0.00013698,2]
[333120134,1721877044912,-510.23796948,0.00013698,2]
[333120136,1721877044924,-700.04,0.00013698,2]
[333120138,1721877044934,-2183.72,0.00013698,2]
[333120140,1721877044945,-500.0,0.00013698,2]
[333120142,1721877044957,-500.0,0.00013698,2]
[333120144,1721877044967,-503.04334662,0.00013698,2]
[333120147,1721877044979,-1541.51,0.00013698,2]
[333120149,1721877044990,-500.0,0.00013698,2]
[333120151,1721877045001,-503.59157369,0.00013698,2]
[333120153,1721877045013,-552.93646538,0.00013698,2]
[333122488,1721878150180,-379.31528189,9.613e-05,2]
[333122489,1721878150202,-194.06631879,9.71e-05,2]
[333122490,1721878150230,-200.0,9.71e-05,2]
[333122491,1721878150253,-300.0,9.823e-05,2]
[333122492,1721878150277,-300.0,9.823e-05,2]
[333122493,1721878150301,-24900.0,9.824e-05,2]
[333122494,1721878150326,-216.113927,9.935e-05,2]
[333122495,1721878150350,-216.113927,9.962e-05,2]
[333122496,1721878150375,-216.113927,9.99e-05,2]
[333122497,1721878150397,-157.66852788,9.999e-05,2]
[333122498,1721878150420,-155.62210705,9.999e-05,2]
[333122499,1721878150445,-729.43514279,9.999e-05,2]
[333122500,1721878150468,-328.18278743,9.999e-05,2]
[333122501,1721878150490,-155.65256671,9.999e-05,2]
[333122502,1721878150514,-202.03848119,9.999e-05,2]
[333122503,1721878150536,-201.273204,9.999e-05,2]
[333122504,1721878150558,-162.90193781,9.999e-05,2]
[333122505,1721878150779,-212.30381194,9.999e-05,2]
[333122506,1721878150801,-664.55696094,9.999e-05,2]
[333122507,1721878150822,-160.51409452,9.999e-05,2]
[333122508,1721878150846,-216.113927,0.00010017,2]
[333122509,1721878150869,-216.113927,0.00010044,2]
[333122510,1721878150893,-216.113927,0.00010071,2]
[333122511,1721878150918,-216.113927,0.00010099,2]
[333122512,1721878150943,-216.113927,0.00010126,2]
[333122513,1721878150971,-216.113927,0.00010153,2]
[333122514,1721878150995,-216.113927,0.0001018,2]
[333122515,1721878151019,-216.113927,0.00010208,2]
[333122516,1721878151043,-216.113927,0.00010235,2]
[333122517,1721878151067,-216.113927,0.00010262,2]
[333122518,1721878151091,-216.113927,0.00010289,2]
[333122519,1721878151115,-216.113927,0.00010317,2]
[333122520,1721878151139,-216.113927,0.00010344,2]
[333122521,1721878151166,-216.113927,0.00010371,2]
[333122522,1721878151190,-216.113927,0.00010398,2]
[333122523,1721878151213,-216.113927,0.00010426,2]
[333122524,1721878151236,-216.113927,0.00010453,2]
[333122525,1721878151258,-200.9552713,0.00010689,2]
[333122526,1721878151281,-420.0,0.00010805,2]
[333122527,1721878151303,-350.06,0.00010959,2]
[333122528,1721878151325,-291.72,0.00010959,2]
[333122529,1721878151348,-243.1,0.00010959,2]
[333122530,1721878151371,-202.58,0.00010959,2]
[333122531,1721878151395,-400.0,0.0001108,2]
[333122532,1721878151419,-587.0,0.00011886,2]
[333122533,1721878153530,168.82,0.00010959,2]
[333122534,1721878159040,287.93931924,0.0001,2]
[333122535,1721878164097,844.13,0.00010959,2]
[333122538,1721878182810,200.0,0.0001,2]
[333122539,1721878182886,400.0,0.0001137,2]
[333122540,1721878195393,282.25280295,0.00010959,2]
[333122541,1721878195530,52.55447057,0.00010959,2]
[333122583,1721878233089,-102.25040669,0.00010959,2]
[333122585,1721878233100,-309.21145716,0.00010959,2]
[333122587,1721878233111,-154.78210304,0.00010959,2]
[333122589,1721878233122,-12668.23486644,0.00010959,2]
[333122592,1721878233135,-545.64000001,0.00010959,2]
[333122605,1721878233256,-6196.80925947,0.00010959,2]
[333122608,1721878233268,-37.07253461,0.00010959,2]
[333122611,1721878233278,-221.6274654,0.00010959,2]
[333122614,1721878233289,-742.3,0.00010959,2]
[333122896,1721878239004,-1705.05974779,0.00010959,2]
[333122897,1721878239295,-13605.22946489,0.00010959,2]
[333122898,1721878239307,-164.24967346,0.00010959,2]
[333122899,1721878239316,-1847.75945673,0.000129,2]
[333122900,1721878239326,-2001.8918007,0.00012997,2]
[333122901,1721878239335,-600.0,0.00013147,2]
[333122902,1721878239344,-11380.92562951,0.000132,2]
[333122903,1721878239353,-162.6387179,0.00013283,2]
[333122905,1721878239363,-412.5585816,0.00013338,2]
[333122906,1721878239372,-206.6937542,0.00013338,2]
[333122908,1721878239381,-200.0,0.00013425,2]
[333122909,1721878239391,-5306.88604622,0.00013433,2]
[333122911,1721878239400,-5056.05551408,0.00013434,2]
[333122912,1721878239410,-160.0,0.00013451,3]
[333122914,1721878239420,-5056.05551406,0.00013475,2]
[333122916,1721878239429,-18766.035149,0.0001349,2]
[333122918,1721878239440,-54291.9844335,0.000135,2]
[333122920,1721878239449,-5056.05551406,0.00013516,2]
[333122922,1721878239459,-153.0,0.00013534,2]
[333122924,1721878239468,-160.0,0.00013539,4]
[333122926,1721878239477,-5056.05551406,0.00013557,2]
[333122928,1721878239487,-5056.05551406,0.00013598,2]
[333122930,1721878239499,-200.0,0.00013598,2]
[333122932,1721878239513,-293.9641968,0.000136,2]
[333122934,1721878239523,-150.112233,0.000136,2]
[333122937,1721878239533,-150.112233,0.000136,2]
[333122939,1721878239545,-150.112233,0.000136,2]
[333122940,1721878239555,-150.112233,0.000136,2]
[333122942,1721878239565,-150.112233,0.000136,2]
[333122944,1721878239575,-3143.54096117,0.000136,2]
[333122946,1721878239584,-160.0,0.00013627,5]
[333122949,1721878239594,-6558.32155551,0.00013643,2]
[333122950,1721878239604,-151.49154258,0.00013676,2]
[333122952,1721878239613,-206426.386639,0.00013688,2]
[333122954,1721878239623,-367.51233122,0.00013689,2]
[333122956,1721878239632,-329.11155135,0.00013698,2]
[333122958,1721878239643,-4619.04046055,0.00013698,2]
[333122960,1721878239652,-853.13,0.00013698,2]
[333122962,1721878239663,-853.13,0.00013698,2]
[333122964,1721878239672,-853.13,0.00013698,2]
[333122966,1721878239682,-853.13,0.00013698,2]
[333122968,1721878239691,-853.13,0.00013698,2]
[333122970,1721878239702,-853.13,0.00013698,2]
[333122972,1721878239712,-853.13,0.00013698,2]
[333122974,1721878239721,-853.13,0.00013698,2]
[333122976,1721878239731,-853.13,0.00013698,2]
[333122978,1721878239741,-853.13,0.00013698,2]
[333122980,1721878239750,-853.13,0.00013698,2]
[333122982,1721878239762,-853.13,0.00013698,2]
[333122984,1721878239771,-853.13,0.00013698,2]
[333122986,1721878239780,-853.13,0.00013698,2]
[333122988,1721878239790,-853.13,0.00013698,2]
[333122990,1721878239800,-853.13,0.00013698,2]
[333122992,1721878239809,-853.13,0.00013698,2]
[333122994,1721878239820,-853.13,0.00013698,2]
[333122996,1721878239830,-853.13,0.00013698,2]
[333122998,1721878239840,-853.13,0.00013698,2]
[333123000,1721878239850,-853.13,0.00013698,2]
[333123002,1721878239859,-853.13,0.00013698,2]
[333123004,1721878239869,-853.13,0.00013698,2]
[333123006,1721878239879,-853.14947288,0.00013698,2]
[333123008,1721878239888,-230396.09846259,0.00013698,2]
[333123480,1721878244216,-3782.59755445,0.00010959,2]
[333123482,1721878244226,-1967.28876614,0.000129,2]
[333123484,1721878244236,-32316.18781263,0.00013698,2]
[333123486,1721878244246,-500.0,0.00013698,2]
[333123488,1721878244255,-500.0,0.00013698,2]
[333123491,1721878244269,-500.0,0.00013698,2]
[333123494,1721878244278,-500.0,0.00013698,2]
[333123496,1721878244288,-514.5,0.00013698,3]
[333123498,1721878244297,-503.4661935,0.00013698,2]
[333123500,1721878244306,-500.0,0.00013698,2]
[333123502,1721878244315,-229.79555965,0.00013698,2]
[333123504,1721878244325,-500.0,0.00013698,2]
[333123506,1721878244335,-500.0,0.00013698,2]
[333123508,1721878244344,-500.0,0.00013698,2]
[333123510,1721878244353,-500.0,0.00013698,2]
[333123512,1721878244362,-500.0,0.00013698,2]
[333123515,1721878244372,-500.0,0.00013698,2]
[333123516,1721878244381,-500.0,0.00013698,2]
[333123518,1721878244390,-500.0,0.00013698,2]
[333123520,1721878244399,-501.47646181,0.00013698,2]
[333123522,1721878244409,-501.15920717,0.00013698,2]
[333123524,1721878244418,-500.0,0.00013698,2]
[333123526,1721878244427,-500.0,0.00013698,2]
[333123528,1721878244436,-500.0,0.00013698,2]
[333123530,1721878244445,-516.97210084,0.00013698,2]
[333123532,1721878244455,-500.0,0.00013698,2]
[333123534,1721878244464,-500.0,0.00013698,2]
[333123536,1721878244473,-500.0,0.00013698,2]
[333123538,1721878244482,-500.0,0.00013698,2]
[333123540,1721878244491,-537.33986882,0.00013698,2]
[333123542,1721878244504,-112.65086672,0.00013698,2]
[333123544,1721878244516,-500.0,0.00013698,2]
[333123546,1721878244525,-500.0,0.00013698,2]
[333123549,1721878244535,-500.0,0.00013698,2]
[333123551,1721878244544,-500.0,0.00013698,2]